fUST/lending_fUST_20250610
["ID","MTS","AMOUNT","RATE_DAILY","PERIOD"]
[365147102,1749493835098,-500.0,0.00021095,4]
[365147103,1749493835108,-460.0,0.00021095,4]
[365147104,1749493835117,-440.0,0.00021095,4]
[365147105,1749493835127,-450.0,0.00021095,4]
[365147106,1749493835136,-460.0,0.00021095,4]
[365147107,1749493835146,-295.48207929,0.00021095,4]
[365147108,1749493835156,-380.0,0.00021095,4]
[365147109,1749493835166,-440.0,0.00021095,4]
[365147110,1749493835176,-440.0,0.00021095,4]
[365147111,1749493835185,-1866.26,0.00021095,4]
[365147112,1749493835195,-440.0,0.00021095,4]
[365147113,1749493835205,-503.94,0.00021095,4]
[365147114,1749493835215,-470.21,0.00021095,4]
[365147115,1749493835225,-13102.33142827,0.00021095,4]
[365147124,1749493838486,-4529.7240551,0.00019643,2]
[365147125,1749493838496,-500.0,0.00019841,2]
[365147126,1749493838506,-500.0,0.00019841,2]
[365147127,1749493838516,-350.08208995,0.00019841,2]
[365147128,1749493838525,-16000.0,0.00021068,2]
[365147129,1749493838535,-783.1,0.00021086,2]
[365147130,1749493838544,-1890.29857173,0.00021095,4]
[365147131,1749493838553,-373.38724978,0.00021095,4]
[365147132,1749493838562,-430.0,0.00021095,4]
[365147133,1749493838571,-380.0,0.00021095,4]
[365147134,1749493838581,-762.96,0.00021095,4]
[365147135,1749493838589,-431.68950031,0.00021095,4]
[365147136,1749493838597,-460.0,0.00021095,4]
[365147137,1749493838606,-2141.53,0.00021095,4]
[365147138,1749493838615,-440.0,0.00021095,4]
[365147139,1749493838625,-587.23,0.00021095,4]
[365147140,1749493838634,-460.0,0.00021095,4]
[365147141,1749493838643,-460.0,0.00021095,4]
[365147142,1749493838652,-440.0,0.00021095,4]
[365147143,1749493838661,-460.0,0.00021095,4]
[365147144,1749493838670,-460.0,0.00021095,4]
[365147145,1749493838678,-500.0,0.00021095,4]
[365147146,1749493838688,-440.0,0.00021095,4]
[365147147,1749493838697,-500.0,0.00021095,4]
[365147148,1749493838706,-500.0,0.00021095,4]
[365147149,1749493838714,-778.15,0.00021095,4]
[365147150,1749493838723,-500.0,0.00021095,4]
[365147151,1749493838732,-460.0,0.00021095,4]
[365147152,1749493838741,-500.0,0.00021095,4]
[365147153,1749493838749,-500.0,0.00021095,4]
[365147154,1749493838758,-370.26,0.00021095,4]
[365147155,1749493838766,-430.0,0.00021095,4]
[365147156,1749493838775,-430.0,0.00021095,4]
[365147157,1749493838785,-381.92977104,0.00021095,4]
[365147158,1749493838795,-460.0,0.00021095,4]
[365147159,1749493838805,-460.0,0.00021095,4]
[365147160,1749493838815,-460.0,0.00021095,4]
[365147161,1749493838824,-440.0,0.00021095,4]
[365147162,1749493838835,-337.24598555,0.00021095,4]
[365147163,1749493838844,-460.0,0.00021095,4]
[365147164,1749493838854,-500.0,0.00021095,4]
[365147165,1749493838863,-500.0,0.00021099,2]
[365147166,1749493838884,-500.0,0.00021099,2]
[365147167,1749493838894,-404.04713766,0.00021099,2]
[365147168,1749493838904,-500.0,0.00021099,2]
[365147169,1749493838914,-500.0,0.00021099,2]
[365147170,1749493838923,-500.0,0.00021099,2]
[365147171,1749493838933,-500.0,0.00021099,2]
[365147172,1749493838942,-500.0,0.00021099,2]
[365147173,1749493838952,-549.74773246,0.00021099,2]
[365147174,1749493838962,-825.45,0.000211,2]
[365147175,1749493838971,-784.69090048,0.00021176,4]
[365147176,1749493838981,-500.0,0.00021232,4]
[365147177,1749493838992,-500.0,0.00021232,2]
[365147178,1749493839002,-500.0,0.00021259,4]
[365147179,1749493839012,-500.0,0.00021259,2]
[365147180,1749493839022,-500.0,0.00021287,4]
[365147181,1749493839032,-195.33704988,0.00021287,2]
[365147182,1749493839041,-151.0,0.000213,2]
[365147183,1749493839051,-151.0,0.000213,2]
[365147184,1749493839210,-784.69090048,0.00021314,5]
[365147185,1749493839221,-151.0,0.00021369,2]
[365147186,1749493839232,-151.0,0.00021369,2]
[365147187,1749493839242,-151.0,0.00021369,2]
[365147188,1749493839252,-151.0,0.00021369,2]
[365147189,1749493839262,-420.0,0.00021369,4]
[365147190,1749493839271,-151.0,0.00021369,2]
[365147191,1749493839285,-151.0,0.00021369,2]
[365147192,1749493839295,-410.0,0.00021369,4]
[365147193,1749493839305,-420.0,0.00021369,4]
[365147194,1749493839318,-164.91084572,0.00021369,4]
[365147195,1749493839328,-433.07761456,0.00021369,4]
[365147196,1749493839338,-410.0,0.00021369,4]
[365147197,1749493839347,-460.0,0.00021369,4]
[365147198,1749493839357,-460.0,0.00021369,4]
[365147199,1749493839367,-420.0,0.00021369,4]
[365147200,1749493839378,-460.0,0.00021369,4]
[365147201,1749493839387,-460.0,0.00021369,2]
[365147202,1749493839397,-233.29837282,0.00021369,4]
[365147203,1749493839406,-420.0,0.00021369,4]
[365147204,1749493839416,-737.22,0.00021369,4]
[365147205,1749493839425,-420.0,0.00021369,4]
[365147206,1749493839435,-460.0,0.00021369,4]
[365147207,1749493839444,-410.0,0.00021369,4]
[365147208,1749493839454,-460.0,0.00021369,4]
[365147209,1749493839463,-193.23622115,0.00021369,4]
[365147210,1749493839473,-440.0,0.00021369,4]
[365147211,1749493839482,-460.0,0.00021369,4]
[365147212,1749493839491,-410.0,0.00021369,4]
[365147213,1749493839501,-432.57,0.00021369,4]
[365147214,1749493839510,-460.0,0.00021369,4]
[365147215,1749493839520,-360.0,0.00021369,4]
[365147216,1749493839529,-452.2871574,0.00021369,4]
[365147217,1749493839538,-460.0,0.00021369,4]
[365147218,1749493839548,-420.0,0.00021369,4]
[365147219,1749493839557,-350.0,0.00021369,4]
[365147220,1749493839566,-294.24699966,0.00021369,4]
[365147221,1749493839576,-876.53,0.00021369,4]
[365147222,1749493839585,-460.0,0.00021369,4]
[365147223,1749493839595,-460.0,0.00021369,4]
[365147224,1749493839604,-460.0,0.00021369,4]
[365147225,1749493839614,-460.0,0.00021369,4]
[365147226,1749493839623,-561.13,0.00021369,4]
[365147227,1749493839632,-1340.61,0.00021369,4]
[365147228,1749493839643,-460.0,0.00021369,4]
[365147229,1749493839652,-460.0,0.00021369,4]
[365147230,1749493839662,-460.0,0.00021369,4]
[365147231,1749493839671,-460.0,0.00021369,4]
[365147232,1749493839682,-330.0,0.00021369,4]
[365147233,1749493839692,-1721.38,0.00021369,4]
[365147234,1749493839702,-460.0,0.00021369,4]
[365147235,1749493839712,-460.0,0.00021369,4]
[365147236,1749493839721,-460.0,0.00021369,4]
[365147237,1749493839730,-947.41,0.00021369,4]
[365147238,1749493839743,-554.24,0.00021369,4]
[365147239,1749493839752,-460.0,0.00021369,4]
[365147240,1749493839762,-410.0,0.00021369,4]
[365147241,1749493839771,-460.0,0.00021369,4]
[365147242,1749493839781,-552.51,0.00021369,4]
[365147243,1749493839790,-390.0,0.00021369,4]
[365147244,1749493839800,-660.95,0.00021369,4]
[365147245,1749493839810,-460.0,0.00021369,4]
[365147246,1749493839819,-460.0,0.00021369,4]
[365147247,1749493839828,-460.0,0.00021369,4]
[365147248,1749493839838,-460.0,0.00021369,4]
[365147249,1749493839847,-438.23,0.00021369,4]
[365147250,1749493839858,-1138.93,0.00021369,4]
[365147251,1749493839868,-920.98,0.00021369,4]
[365147252,1749493839877,-460.0,0.00021369,4]
[365147253,1749493839886,-460.0,0.00021369,4]
[365147254,1749493839896,-711.22,0.00021369,4]
[365147255,1749493839905,-460.0,0.00021369,4]
[365147256,1749493839915,-460.0,0.00021369,4]
[365147257,1749493839925,-1298.41,0.00021369,4]
[365147258,1749493839935,-460.0,0.00021369,4]
[365147259,1749493839944,-460.0,0.00021369,4]
[365147260,1749493839954,-460.0,0.00021369,4]
[365147261,1749493839963,-460.0,0.00021369,4]
[365147262,1749493839973,-460.0,0.00021369,4]
[365147264,1749493839982,-460.0,0.00021369,4]
[365147265,1749493839992,-460.0,0.00021369,4]
[365147266,1749493840002,-460.0,0.00021369,4]
[365147267,1749493840011,-2242.04,0.00021369,4]
[365147268,1749493840021,-460.0,0.00021369,4]
[365147269,1749493840030,-2022.98,0.00021369,4]
[365147270,1749493840040,-460.0,0.00021369,4]
[365147271,1749493840050,-460.0,0.00021369,4]
[365147272,1749493840059,-460.0,0.00021369,4]
[365147273,1749493840069,-460.0,0.00021369,4]
[365147274,1749493840079,-1866.26,0.00021369,4]
[365147275,1749493840088,-503.94,0.00021369,4]
[365147276,1749493840098,-470.21,0.00021369,4]
[365147277,1749493840108,-14992.63,0.00021369,4]
[365147278,1749493840118,-762.96,0.00021369,4]
[365147279,1749493840127,-460.0,0.00021369,4]
[365147280,1749493840137,-2141.53,0.00021369,4]
[365147281,1749493840148,-587.23,0.00021369,4]
[365147282,1749493840157,-460.0,0.00021369,4]
[365147283,1749493840167,-167.45,0.00021369,4]
[365147284,1749493840177,-460.0,0.00021369,4]
[365147285,1749493840187,-420.0,0.00021369,4]
[365147286,1749493840197,-778.15,0.00021369,4]
[365147287,1749493840206,-460.0,0.00021369,4]
[365147288,1749493840216,-420.0,0.00021369,4]
[365147289,1749493840226,-460.0,0.00021369,4]
[365147290,1749493840236,-460.0,0.00021369,4]
[365147291,1749493840246,-340.0,0.00021369,4]
[365147292,1749493840256,-496.0979567,0.00021391,2]
[365147293,1749493840265,-784.69090048,0.00021452,5]
[365147295,1749493840275,-151.0,0.00021487,2]
[365147297,1749493840286,-151.0,0.00021487,2]
[365147299,1749493840295,-151.0,0.000215,2]
[365147301,1749493840305,-151.0,0.000215,2]
[365147302,1749493840315,-2203.06,0.000215,2]
[365147305,1749493840326,-2952.7664824,0.00021543,2]
[365147307,1749493840335,-784.69090048,0.0002159,5]
[365147309,1749493840346,-500.0,0.00021597,2]
[365147311,1749493840357,-500.0,0.00021597,2]
[365147313,1749493840366,-300.0,0.00021608,2]
[365147315,1749493840376,-262.0,0.00021608,2]
[365147317,1749493840385,-1680.0,0.00021613,2]
[365147319,1749493840397,-16000.0,0.00021616,2]
[365147321,1749493840407,-500.0,0.00021621,2]
[365147323,1749493840417,-504.77353075,0.00021621,2]
[365147325,1749493840427,-165.04079114,0.00021621,2]
[365147327,1749493840436,-151.0,0.00021643,2]
[365147329,1749493840446,-151.0,0.00021643,2]
[365147331,1749493840455,-151.0,0.00021643,2]
[365147333,1749493840465,-241.455374,0.00021643,2]
[365147335,1749493840475,-460.0,0.00021643,4]
[365147336,1749493840486,-340.0,0.00021643,4]
[365147337,1749493840496,-460.0,0.00021643,4]
[365147338,1749493840507,-460.0,0.00021643,2]
[365147339,1749493840517,-737.22,0.00021643,4]
[365147340,1749493840526,-460.0,0.00021643,4]
[365147341,1749493840536,-460.0,0.00021643,4]
[365147342,1749493840545,-460.0,0.00021643,4]
[365147343,1749493840555,-340.0,0.00021643,4]
[365147344,1749493840565,-460.0,0.00021643,4]
[365147345,1749493840575,-876.53,0.00021643,4]
[365147346,1749493840584,-460.0,0.00021643,4]
[365147347,1749493840594,-460.0,0.00021643,4]
[365147348,1749493840604,-460.0,0.00021643,4]
[365147349,1749493840613,-460.0,0.00021643,4]
[365147350,1749493840623,-561.13,0.00021643,4]
[365147351,1749493840640,-1340.61,0.00021643,4]
[365147352,1749493840654,-370.0,0.00021643,4]
[365147353,1749493840664,-460.0,0.00021643,4]
[365147354,1749493840674,-460.0,0.00021643,4]
[365147355,1749493840685,-460.0,0.00021643,4]
[365147356,1749493840695,-1721.38,0.00021643,4]
[365147357,1749493840705,-420.0,0.00021643,4]
[365147358,1749493840715,-460.0,0.00021643,4]
[365147359,1749493840725,-460.0,0.00021643,4]
[365147360,1749493840735,-947.41,0.00021643,4]
[365147361,1749493840746,-554.24,0.00021643,4]
[365147362,1749493840756,-460.0,0.00021643,4]
[365147363,1749493840766,-460.0,0.00021643,4]
[365147365,1749493840777,-552.51,0.00021643,4]
[365147367,1749493840786,-660.95,0.00021643,4]
[365147369,1749493840797,-420.0,0.00021643,4]
[365147371,1749493840807,-460.0,0.00021643,4]
[365147373,1749493840817,-460.0,0.00021643,4]
[365147375,1749493840827,-460.0,0.00021643,4]
[365147378,1749493840836,-1138.93,0.00021643,4]
[365147380,1749493840846,-920.98,0.00021643,4]
[365147382,1749493840856,-420.0,0.00021643,4]
[365147384,1749493840865,-460.0,0.00021643,4]
[365147386,1749493840875,-711.22,0.00021643,4]
[365147388,1749493840885,-460.0,0.00021643,4]
[365147390,1749493840895,-460.0,0.00021643,4]
[365147392,1749493840905,-1298.41,0.00021643,4]
[365147394,1749493840915,-460.0,0.00021643,4]
[365147396,1749493840925,-460.0,0.00021643,4]
[365147398,1749493840937,-460.0,0.00021643,4]
[365147400,1749493840947,-270.0,0.00021643,4]
[365147402,1749493840957,-279.15417083,0.00021643,4]
[365147404,1749493840966,-460.0,0.00021643,4]
[365147406,1749493840976,-460.0,0.00021643,4]
[365147408,1749493840988,-444.03042737,0.00021643,4]
[365147410,1749493840998,-2242.04,0.00021643,4]
[365147413,1749493841008,-460.0,0.00021643,4]
[365147415,1749493841019,-2022.98,0.00021643,4]
[365147417,1749493841029,-460.0,0.00021643,4]
[365147419,1749493841039,-460.0,0.00021643,4]
[365147421,1749493841049,-460.0,0.00021643,4]
[365147423,1749493841059,-460.0,0.00021643,4]
[365147425,1749493841069,-1866.26,0.00021643,4]
[365147427,1749493841079,-503.94,0.00021643,4]
[365147429,1749493841089,-470.21,0.00021643,4]
[365147431,1749493841099,-14992.63,0.00021643,4]
[365147433,1749493841109,-762.96,0.00021643,4]
[365147435,1749493841119,-460.0,0.00021643,4]
[365147437,1749493841129,-2141.53,0.00021643,4]
[365147439,1749493841141,-587.23,0.00021643,4]
[365147441,1749493841151,-460.0,0.00021643,4]
[365147444,1749493841161,-460.0,0.00021643,4]
[365147446,1749493841171,-778.15,0.00021643,4]
[365147448,1749493841181,-320.59813726,0.00021643,4]
[365147450,1749493841191,-460.0,0.00021643,4]
[365147452,1749493841201,-460.0,0.00021643,4]
[365147454,1749493841212,-784.69090048,0.00021728,5]
[365147456,1749493841222,-834.7738823,0.00021828,2]
[365147458,1749493841232,-160.0,0.00021828,2]
[365147460,1749493841242,-842.5625,0.00021828,2]
[365147463,1749493841255,-229.64266968,0.00021828,2]
[365147465,1749493841265,-424.05420114,0.00021828,2]
[365147466,1749493841275,-213.08899333,0.00021828,2]
[365147469,1749493841285,-160.0,0.00021828,2]
[365147471,1749493841295,-160.0,0.00021828,2]
[365147473,1749493841305,-784.69090048,0.00021866,6]
[365147474,1749493841318,-167.31312015,0.00021893,2]
[365147476,1749493841330,-500.0,0.00021917,2]
[365147479,1749493841341,-460.0,0.00021917,4]
[365147481,1749493841351,-320.0,0.00021917,4]
[365147483,1749493841361,-460.0,0.00021917,2]
[365147485,1749493841372,-177.995772,0.00021917,2]
[365147487,1749493841382,-177.995772,0.00021917,2]
[365147489,1749493841392,-737.22,0.00021917,4]
[365147491,1749493841402,-287.634556,0.00021917,2]
[365147493,1749493841412,-287.634556,0.00021917,2]
[365147495,1749493841422,-353.8115949,0.00021917,4]
[365147497,1749493841432,-460.0,0.00021917,4]
[365147499,1749493841442,-320.0,0.00021917,4]
[365147501,1749493841452,-151.0,0.00021917,2]
[365147503,1749493841462,-353.75,0.00021917,4]
[365147505,1749493841472,-154.470227,0.00021917,2]
[365147507,1749493841482,-876.53,0.00021917,4]
[365147509,1749493841492,-460.0,0.00021917,4]
[365147511,1749493841502,-460.0,0.00021917,4]
[365147513,1749493841512,-460.0,0.00021917,4]
[365147515,1749493841522,-340.0,0.00021917,4]
[365147518,1749493841532,-561.13,0.00021917,4]
[365147519,1749493841542,-1340.61,0.00021917,4]
[365147520,1749493841552,-460.0,0.00021917,4]
[365147521,1749493841562,-151.0,0.00021917,2]
[365147522,1749493841572,-321.78,0.00021917,4]
[365147523,1749493841582,-460.0,0.00021917,4]
[365147524,1749493841592,-1721.38,0.00021917,4]
[365147525,1749493841602,-460.0,0.00021917,4]
[365147526,1749493841611,-460.0,0.00021917,4]
[365147527,1749493841621,-947.41,0.00021917,4]
[365147528,1749493841631,-554.24,0.00021917,4]
[365147529,1749493841641,-400.0,0.00021917,4]
[365147530,1749493841650,-460.0,0.00021917,4]
[365147531,1749493841660,-552.51,0.00021917,4]
[365147533,1749493841669,-660.95,0.00021917,4]
[365147534,1749493841679,-460.0,0.00021917,4]
[365147535,1749493841817,-460.0,0.00021917,4]
[365147536,1749493841828,-460.0,0.00021917,4]
[365147537,1749493841838,-1138.93,0.00021917,4]
[365147538,1749493841847,-920.98,0.00021917,4]
[365147539,1749493841857,-460.0,0.00021917,4]
[365147540,1749493841867,-711.22,0.00021917,4]
[365147541,1749493841877,-460.0,0.00021917,4]
[365147542,1749493841886,-460.0,0.00021917,4]
[365147543,1749493841896,-1298.41,0.00021917,4]
[365147544,1749493841906,-595.71113709,0.00021917,4]
[365147545,1749493841915,-460.0,0.00021917,4]
[365147546,1749493841925,-460.0,0.00021917,4]
[365147547,1749493841934,-460.0,0.00021917,4]
[365147548,1749493841943,-460.0,0.00021917,4]
[365147549,1749493841953,-2242.04,0.00021917,4]
[365147550,1749493841962,-460.0,0.00021917,4]
[365147551,1749493841971,-2022.98,0.00021917,4]
[365147552,1749493841980,-460.0,0.00021917,4]
[365147553,1749493841991,-460.0,0.00021917,4]
[365147554,1749493842000,-460.0,0.00021917,4]
[365147555,1749493842010,-460.0,0.00021917,4]
[365147556,1749493842020,-1866.26,0.00021917,4]
[365147557,1749493842029,-503.94,0.00021917,4]
[365147558,1749493842038,-470.21,0.00021917,4]
[365147559,1749493842048,-14992.63,0.00021917,4]
[365147560,1749493842058,-762.96,0.00021917,4]
[365147561,1749493842068,-460.0,0.00021917,4]
[365147562,1749493842078,-2141.53,0.00021917,4]
[365147563,1749493842087,-151.0,0.00021917,2]
[365147564,1749493842097,-587.23,0.00021917,4]
[365147565,1749493842107,-355.17856179,0.00021917,4]
[365147566,1749493842116,-340.0,0.00021917,4]
[365147567,1749493842126,-151.0,0.00021917,2]
[365147568,1749493842135,-500.0,0.00021917,4]
[365147569,1749493842145,-500.0,0.00021917,4]
[365147570,1749493842155,-500.0,0.00021917,4]
[365147571,1749493842165,-500.0,0.00021917,4]
[365147572,1749493842175,-778.15,0.00021917,4]
[365147573,1749493842186,-460.0,0.00021917,4]
[365147574,1749493842197,-460.0,0.00021917,4]
[365147575,1749493842207,-215.0738,0.00021933,2]
[365147576,1749493842218,-161.0,0.00022,2]
[365147577,1749493842228,-171.0,0.00022,2]
[365147578,1749493842238,-57463.05665493,0.00022,2]
[365147579,1749493842248,-160.76859129,0.00022,2]
[365147580,1749493842258,-784.69090048,0.00022003,6]
[365147581,1749493842267,-784.69090048,0.00022141,6]
[365147582,1749493842277,-460.0,0.00022191,4]
[365147583,1749493842287,-151.0,0.00022191,7]
[365147584,1749493842297,-460.0,0.00022191,2]
[365147585,1749493842307,-151.0,0.00022191,7]
[365147586,1749493842318,-273.709397,0.00022191,7]
[365147587,1749493842328,-737.22,0.00022191,4]
[365147588,1749493842338,-460.0,0.00022191,4]
[365147589,1749493842347,-876.53,0.00022191,4]
[365147590,1749493842357,-419.61450717,0.00022191,4]
[365147591,1749493842367,-460.0,0.00022191,4]
[365147592,1749493842377,-455.04312294,0.00022191,4]
[365147593,1749493842387,-561.13,0.00022191,4]
[365147594,1749493842397,-1340.61,0.00022191,4]
[365147595,1749493842407,-460.0,0.00022191,4]
[365147596,1749493842416,-460.0,0.00022191,4]
[365147597,1749493842426,-1721.38,0.00022191,4]
[365147598,1749493842435,-460.0,0.00022191,4]
[365147599,1749493842445,-460.0,0.00022191,4]
[365147600,1749493842454,-947.41,0.00022191,4]
[365147601,1749493842464,-554.24,0.00022191,4]
[365147602,1749493842473,-460.0,0.00022191,4]
[365147603,1749493842483,-552.51,0.00022191,4]
[365147604,1749493842492,-660.95,0.00022191,4]
[365147605,1749493842502,-460.0,0.00022191,4]
[365147606,1749493842511,-294.1,0.00022191,4]
[365147607,1749493842521,-460.0,0.00022191,4]
[365147608,1749493842530,-1138.93,0.00022191,4]
[365147609,1749493842540,-920.98,0.00022191,4]
[365147610,1749493842550,-460.0,0.00022191,4]
[365147611,1749493842559,-711.22,0.00022191,4]
[365147612,1749493842579,-460.0,0.00022191,4]
[365147613,1749493842591,-460.0,0.00022191,4]
[365147614,1749493842601,-1298.41,0.00022191,4]
[365147615,1749493842612,-460.0,0.00022191,4]
[365147616,1749493842623,-461.58155596,0.00022191,4]
[365147617,1749493842633,-434.09231252,0.00022191,4]
[365147618,1749493842643,-460.0,0.00022191,4]
[365147619,1749493842653,-2242.04,0.00022191,4]
[365147620,1749493842663,-460.0,0.00022191,4]
[365147621,1749493842673,-2022.98,0.00022191,4]
[365147622,1749493842683,-460.0,0.00022191,4]
[365147623,1749493842693,-460.0,0.00022191,4]
[365147624,1749493842703,-460.0,0.00022191,4]
[365147625,1749493842713,-460.0,0.00022191,4]
[365147626,1749493842723,-1866.26,0.00022191,4]
[365147627,1749493842732,-503.94,0.00022191,4]
[365147628,1749493842743,-470.21,0.00022191,4]
[365147629,1749493842753,-14992.63,0.00022191,4]
[365147630,1749493842763,-762.96,0.00022191,4]
[365147631,1749493842772,-460.0,0.00022191,4]
[365147632,1749493842782,-2141.53,0.00022191,4]
[365147633,1749493842792,-587.23,0.00022191,4]
[365147634,1749493842801,-151.0,0.00022191,7]
[365147636,1749493842811,-778.15,0.00022191,4]
[365147638,1749493842821,-460.0,0.00022191,4]
[365147639,1749493842830,-260.0,0.00022191,4]
[365147640,1749493842840,-500.0,0.00022194,2]
[365147641,1749493842850,-784.69090048,0.00022279,6]
[365147642,1749493842861,-784.69090048,0.00022417,7]
[365147644,1749493842871,-500.0,0.0002244,2]
[365147645,1749493842881,-501.09580603,0.0002244,2]
[365147646,1749493842891,-152.72517312,0.0002244,2]
[365147647,1749493842901,-1665.88,0.00022455,3]
[365147648,1749493842911,-832.94,0.00022455,3]
[365147649,1749493842922,-416.46,0.00022455,3]
[365147650,1749493842932,-400.0,0.00022465,2]
[365147651,1749493842942,-400.0,0.00022465,2]
[365147652,1749493842952,-221.23862199,0.00022465,2]
[365147653,1749493842962,-504.7392332,0.00022465,2]
[365147654,1749493842972,-460.0,0.00022465,4]
[365147655,1749493842982,-1560.568451,0.00022465,2]
[365147656,1749493842995,-460.0,0.00022465,2]
[365147657,1749493843005,-177.995772,0.00022465,7]
[365147658,1749493843015,-177.995772,0.00022465,7]
[365147659,1749493843025,-737.22,0.00022465,4]
[365147660,1749493843034,-287.634556,0.00022465,2]
[365147661,1749493843045,-287.634556,0.00022465,2]
[365147662,1749493843055,-460.0,0.00022465,4]
[365147663,1749493843066,-151.0,0.00022465,7]
[365147664,1749493843076,-876.53,0.00022465,4]
[365147665,1749493843086,-460.0,0.00022465,4]
[365147666,1749493843096,-561.13,0.00022465,4]
[365147667,1749493843106,-1340.61,0.00022465,4]
[365147668,1749493843116,-460.0,0.00022465,4]
[365147669,1749493843125,-460.0,0.00022465,4]
[365147670,1749493843136,-1721.38,0.00022465,4]
[365147671,1749493843146,-460.0,0.00022465,4]
[365147672,1749493843156,-460.0,0.00022465,4]
[365147673,1749493843167,-947.41,0.00022465,4]
[365147674,1749493843177,-554.24,0.00022465,4]
[365147675,1749493843187,-460.0,0.00022465,4]
[365147676,1749493843197,-552.51,0.00022465,4]
[365147677,1749493843207,-660.95,0.00022465,4]
[365147678,1749493843218,-460.0,0.00022465,4]
[365147679,1749493843228,-460.0,0.00022465,4]
[365147680,1749493843240,-1138.93,0.00022465,4]
[365147681,1749493843250,-920.98,0.00022465,4]
[365147682,1749493843259,-460.0,0.00022465,4]
[365147683,1749493843269,-711.22,0.00022465,4]
[365147684,1749493843279,-460.0,0.00022465,4]
[365147685,1749493843289,-460.0,0.00022465,4]
[365147686,1749493843298,-1298.41,0.00022465,4]
[365147687,1749493843309,-460.0,0.00022465,4]
[365147688,1749493843322,-460.0,0.00022465,4]
[365147689,1749493843332,-2242.04,0.00022465,4]
[365147690,1749493843344,-460.0,0.00022465,4]
[365147691,1749493843354,-2022.98,0.00022465,4]
[365147692,1749493843364,-460.0,0.00022465,4]
[365147693,1749493843373,-460.0,0.00022465,4]
[365147694,1749493843383,-460.0,0.00022465,4]
[365147695,1749493843393,-460.0,0.00022465,4]
[365147696,1749493843403,-1866.26,0.00022465,4]
[365147697,1749493843412,-503.94,0.00022465,4]
[365147698,1749493843422,-470.21,0.00022465,4]
[365147699,1749493843432,-14992.63,0.00022465,4]
[365147700,1749493843442,-762.96,0.00022465,4]
[365147701,1749493843452,-460.0,0.00022465,4]
[365147702,1749493843462,-2141.53,0.00022465,4]
[365147703,1749493843472,-587.23,0.00022465,4]
[365147704,1749493843481,-778.15,0.00022465,4]
[365147705,1749493843492,-460.0,0.00022465,4]
[365147706,1749493843501,-825.45,0.000225,7]
[365147707,1749493843512,-784.69090048,0.00022555,7]
[365147708,1749493843521,-2203.06,0.000226,7]
[365147709,1749493843531,-160.0,0.00022622,3]
[365147710,1749493843541,-784.69090048,0.00022693,7]
[365147711,1749493843551,-4603.657962,0.000227,2]
[365147712,1749493843561,-2000.0,0.00022712,2]
[365147713,1749493843570,-2000.0,0.00022712,2]
[365147714,1749493843580,-2000.0,0.00022712,2]
[365147715,1749493843590,-2000.0,0.00022712,2]